fUST/lending_fUST_20250628
["ID","MTS","AMOUNT","RATE_DAILY","PERIOD"]
[368180435,1751051465869,-460.0,0.00020273,2]
[368180436,1751051465879,-460.0,0.00020273,2]
[368180437,1751051465889,-460.0,0.00020273,2]
[368180438,1751051465898,-5707.73,0.00020273,2]
[368180439,1751051465908,-1053.94,0.00020273,2]
[368180440,1751051465918,-460.0,0.00020273,2]
[368180441,1751051465928,-500.0,0.00020274,2]
[368180442,1751051465938,-151.0,0.000203,4]
[368180443,1751051465947,-1271.0,0.00020306,2]
[368180444,1751051465957,-501.23205749,0.00020311,2]
[368180445,1751051465967,-1000.0,0.00020311,2]
[368180446,1751051465977,-1002.89649884,0.00020311,2]
[368180447,1751051465986,-204.50798009,0.00020311,2]
[368180448,1751051465995,-151.0,0.00020311,2]
[368180449,1751051466005,-151.0,0.00020311,2]
[368180450,1751051466015,-220.692302,0.00020311,2]
[368180451,1751051466025,-151.0,0.00020311,2]
[368180452,1751051466034,-151.0,0.00020311,2]
[368180453,1751051466044,-1000.0,0.00020311,2]
[368180454,1751051466053,-6904.98728489,0.00020383,3]
[368180455,1751051466063,-5000.0,0.00020486,2]
[368180456,1751051466073,-151.0,0.000205,3]
[368180457,1751051466083,-460.0,0.00020547,2]
[368180458,1751051466092,-460.0,0.00020547,2]
[368180459,1751051466102,-460.0,0.00020547,2]
[368180460,1751051466113,-460.0,0.00020547,2]
[368180461,1751051466123,-460.0,0.00020547,2]
[368180462,1751051466132,-460.0,0.00020547,2]
[368180463,1751051466141,-587.76,0.00020547,2]
[368180464,1751051466152,-460.0,0.00020547,2]
[368180465,1751051466161,-460.0,0.00020547,2]
[368180466,1751051466171,-460.0,0.00020547,2]
[368180467,1751051466180,-460.0,0.00020547,2]
[368180468,1751051466189,-460.0,0.00020547,2]
[368180469,1751051466198,-151.0,0.00020547,2]
[368180470,1751051466208,-151.0,0.00020547,2]
[368180471,1751051466217,-460.0,0.00020547,2]
[368180472,1751051466226,-159.776707,0.00020547,2]
[368180473,1751051466235,-460.0,0.00020547,2]
[368180474,1751051466244,-151.0,0.00020547,2]
[368180475,1751051466255,-460.0,0.00020547,2]
[368180476,1751051466264,-151.0,0.00020547,2]
[368180477,1751051466273,-460.0,0.00020547,2]
[368180478,1751051466283,-460.0,0.00020547,2]
[368180479,1751051466292,-460.0,0.00020547,2]
[368180480,1751051466301,-460.0,0.00020547,2]
[368180481,1751051466311,-460.0,0.00020547,2]
[368180482,1751051466321,-460.0,0.00020547,2]
[368180483,1751051466330,-460.0,0.00020547,2]
[368180484,1751051466341,-151.0,0.00020547,2]
[368180485,1751051466350,-151.0,0.00020547,2]
[368180486,1751051466359,-460.0,0.00020547,2]
[368180487,1751051466369,-460.0,0.00020547,2]
[368180488,1751051466378,-460.0,0.00020547,2]
[368180489,1751051466387,-460.0,0.00020547,2]
[368180490,1751051466396,-896.19,0.00020547,2]
[368180491,1751051466405,-297.17217582,0.00020547,2]
[368180492,1751051466416,-940.28,0.00020547,2]
[368180493,1751051466425,-460.0,0.00020547,2]
[368180494,1751051466434,-562.65,0.00020547,2]
[368180495,1751051466443,-460.0,0.00020547,2]
[368180496,1751051466453,-460.0,0.00020547,2]
[368180497,1751051466463,-1430.56,0.00020547,2]
[368180498,1751051466472,-460.0,0.00020547,2]
[368180499,1751051466483,-460.0,0.00020547,2]
[368180500,1751051466493,-460.0,0.00020547,2]
[368180501,1751051466502,-460.0,0.00020547,2]
[368180502,1751051466511,-460.0,0.00020547,2]
[368180503,1751051466522,-244.156814,0.00020547,2]
[368180504,1751051466532,-244.156814,0.00020547,2]
[368180505,1751051466541,-460.0,0.00020547,2]
[368180506,1751051466551,-525.51,0.00020547,2]
[368180507,1751051466562,-460.0,0.00020547,2]
[368180508,1751051466572,-460.0,0.00020547,2]
[368180509,1751051466582,-460.0,0.00020547,2]
[368180510,1751051466592,-172.72636883,0.00020547,2]
[368180511,1751051466601,-460.0,0.00020547,2]
[368180512,1751051466611,-460.0,0.00020547,2]
[368180513,1751051466620,-460.0,0.00020547,2]
[368180514,1751051466629,-460.0,0.00020547,2]
[368180515,1751051466639,-460.0,0.00020547,2]
[368180516,1751051466649,-460.0,0.00020547,2]
[368180517,1751051466659,-460.0,0.00020547,2]
[368180518,1751051466668,-633.77,0.00020547,2]
[368180519,1751051466677,-460.0,0.00020547,2]
[368180520,1751051466687,-460.0,0.00020547,2]
[368180521,1751051466696,-151.0,0.00020547,2]
[368180522,1751051466705,-460.0,0.00020547,2]
[368180523,1751051466715,-460.0,0.00020547,2]
[368180524,1751051466724,-460.0,0.00020547,2]
[368180525,1751051466733,-460.0,0.00020547,2]
[368180526,1751051466837,-460.0,0.00020547,2]
[368180527,1751051466847,-460.0,0.00020547,2]
[368180528,1751051466857,-460.0,0.00020547,2]
[368180529,1751051466867,-460.0,0.00020547,2]
[368180530,1751051466876,-460.0,0.00020547,2]
[368180531,1751051466886,-460.0,0.00020547,2]
[368180532,1751051466896,-460.0,0.00020547,2]
[368180533,1751051466905,-460.0,0.00020547,2]
[368180534,1751051466915,-460.0,0.00020547,2]
[368180535,1751051466925,-460.0,0.00020547,2]
[368180536,1751051466935,-460.0,0.00020547,2]
[368180537,1751051466945,-460.0,0.00020547,2]
[368180538,1751051466954,-151.0,0.00020547,2]
[368180539,1751051466964,-460.0,0.00020547,2]
[368180540,1751051466973,-885.83,0.00020547,2]
[368180541,1751051466983,-460.0,0.00020547,2]
[368180542,1751051466992,-460.0,0.00020547,2]
[368180543,1751051467002,-736.88,0.00020547,2]
[368180544,1751051467011,-314.76,0.00020547,2]
[368180545,1751051467020,-460.0,0.00020547,2]
[368180546,1751051467029,-466.79,0.00020547,2]
[368180547,1751051467039,-460.0,0.00020547,2]
[368180548,1751051467048,-151.0,0.00020547,2]
[368180549,1751051467058,-460.0,0.00020547,2]
[368180550,1751051467067,-151.0,0.00020547,2]
[368180551,1751051467077,-460.0,0.00020547,2]
[368180552,1751051467086,-469.34,0.00020547,2]
[368180553,1751051467096,-460.0,0.00020547,2]
[368180554,1751051467105,-460.0,0.00020547,2]
[368180555,1751051467115,-460.0,0.00020547,2]
[368180556,1751051467125,-460.0,0.00020547,2]
[368180557,1751051467134,-460.0,0.00020547,2]
[368180558,1751051467143,-191.043374,0.00020547,2]
[368180559,1751051467153,-515.25,0.00020547,2]
[368180560,1751051467163,-191.043374,0.00020547,2]
[368180561,1751051467172,-1048.76,0.00020547,2]
[368180562,1751051467181,-151.0,0.00020547,2]
[368180563,1751051467191,-268.910966,0.00020547,2]
[368180564,1751051467200,-205.78,0.00020547,2]
[368180565,1751051467210,-151.0,0.00020547,2]
[368180566,1751051467219,-460.0,0.00020547,2]
[368180567,1751051467228,-460.0,0.00020547,2]
[368180568,1751051467237,-460.0,0.00020547,2]
[368180569,1751051467247,-460.0,0.00020547,2]
[368180570,1751051467256,-268.910966,0.00020547,2]
[368180571,1751051467265,-151.0,0.00020547,2]
[368180572,1751051467275,-151.0,0.00020547,2]
[368180573,1751051467284,-151.0,0.00020547,2]
[368180574,1751051467293,-460.0,0.00020547,2]
[368180575,1751051467303,-460.0,0.00020547,2]
[368180576,1751051467313,-364.55236905,0.00020547,2]
[368180577,1751051467322,-247.56182746,0.00020547,2]
[368180578,1751051467331,-460.0,0.00020547,2]
[368180579,1751051467341,-460.0,0.00020547,2]
[368180580,1751051467350,-240.64718336,0.00020547,2]
[368180581,1751051467360,-989.33,0.00020547,2]
[368180582,1751051467369,-460.0,0.00020547,2]
[368180583,1751051467378,-460.0,0.00020547,2]
[368180584,1751051467388,-460.0,0.00020547,2]
[368180585,1751051467397,-460.0,0.00020547,2]
[368180586,1751051467406,-460.0,0.00020547,2]
[368180587,1751051467415,-460.0,0.00020547,2]
[368180588,1751051467424,-460.0,0.00020547,2]
[368180589,1751051467433,-460.0,0.00020547,2]
[368180590,1751051467442,-151.0,0.00020547,2]
[368180591,1751051467452,-460.0,0.00020547,2]
[368180592,1751051467461,-460.0,0.00020547,2]
[368180593,1751051467471,-797.49,0.00020547,2]
[368180594,1751051467481,-460.0,0.00020547,2]
[368180595,1751051467492,-790.98,0.00020547,2]
[368180596,1751051467501,-460.0,0.00020547,2]
[368180597,1751051467510,-460.0,0.00020547,2]
[368180598,1751051467520,-1185.28,0.00020547,2]
[368180599,1751051467531,-197.80696635,0.00020547,2]
[368180600,1751051467540,-460.0,0.00020547,2]
[368180601,1751051467549,-500.0,0.00020547,2]
[368180602,1751051467559,-1047.76,0.00020547,2]
[368180603,1751051467568,-1638.87,0.00020547,2]
[368180604,1751051467577,-1443.51,0.00020547,2]
[368180605,1751051467586,-2651.75,0.00020547,2]
[368180606,1751051467595,-617.15,0.00020547,2]
[368180607,1751051467604,-624.78,0.00020547,2]
[368180608,1751051467613,-794.36,0.00020547,2]
[368180609,1751051467622,-460.0,0.00020547,2]
[368180610,1751051467631,-460.0,0.00020547,2]
[368180611,1751051467642,-460.0,0.00020547,2]
[368180612,1751051467652,-151.0,0.00020547,2]
[368180613,1751051467661,-460.0,0.00020547,2]
[368180614,1751051467670,-460.0,0.00020547,2]
[368180615,1751051467680,-759.92,0.00020547,2]
[368180616,1751051467689,-460.0,0.00020547,2]
[368180617,1751051467698,-261.625174,0.00020547,2]
[368180618,1751051467707,-5876.3,0.00020547,2]
[368180619,1751051467716,-460.0,0.00020547,2]
[368180620,1751051467726,-261.625174,0.00020547,2]
[368180621,1751051467735,-460.0,0.00020547,2]
[368180622,1751051467745,-690.27,0.00020547,2]
[368180623,1751051467754,-460.0,0.00020547,2]
[368180624,1751051467763,-751.5,0.00020547,2]
[368180625,1751051467773,-460.0,0.00020547,2]
[368180626,1751051467782,-460.0,0.00020547,2]
[368180627,1751051467791,-8165.44,0.00020547,2]
[368180628,1751051467800,-460.0,0.00020547,2]
[368180629,1751051467809,-4917.82,0.00020547,2]
[368180630,1751051467818,-460.0,0.00020547,2]
[368180631,1751051467827,-2460.7,0.00020547,2]
[368180632,1751051467836,-2172.27,0.00020547,2]
[368180633,1751051467847,-460.0,0.00020547,2]
[368180634,1751051467858,-460.0,0.00020547,2]
[368180635,1751051467867,-5152.74,0.00020547,2]
[368180636,1751051467876,-460.0,0.00020547,2]
[368180637,1751051467885,-460.0,0.00020547,2]
[368180638,1751051467894,-2353.85,0.00020547,2]
[368180639,1751051467902,-460.0,0.00020547,2]
[368180640,1751051467911,-460.0,0.00020547,2]
[368180641,1751051467921,-460.0,0.00020547,2]
[368180642,1751051467931,-460.0,0.00020547,2]
[368180643,1751051467941,-460.0,0.00020547,2]
[368180644,1751051467950,-1031.13,0.00020547,2]
[368180645,1751051467960,-460.0,0.00020547,2]
[368180646,1751051467969,-460.0,0.00020547,2]
[368180647,1751051467979,-777.81,0.00020547,2]
[368180648,1751051467987,-460.0,0.00020547,2]
[368180649,1751051467997,-460.0,0.00020547,2]
[368180650,1751051468007,-337.808917,0.00020547,2]
[368180651,1751051468016,-460.0,0.00020547,2]
[368180652,1751051468025,-460.0,0.00020547,2]
[368180653,1751051468035,-565.72,0.00020547,2]
[368180654,1751051468044,-337.808917,0.00020547,2]
[368180655,1751051468053,-460.0,0.00020547,2]
[368180656,1751051468063,-460.0,0.00020547,2]
[368180657,1751051468072,-344.98897562,0.00020547,2]
[368180658,1751051468082,-460.0,0.00020547,2]
[368180659,1751051468091,-356.39224192,0.00020547,2]
[368180660,1751051468100,-6789.07,0.00020547,2]
[368180661,1751051468111,-460.0,0.00020547,2]
[368180662,1751051468120,-460.0,0.00020547,2]
[368180663,1751051468129,-2920.48,0.00020547,2]
[368180664,1751051468139,-460.0,0.00020547,2]
[368180665,1751051468149,-460.0,0.00020547,2]
[368180666,1751051468160,-460.0,0.00020547,2]
[368180667,1751051468169,-460.0,0.00020547,2]
[368180668,1751051468179,-901.26,0.00020547,2]
[368180669,1751051468188,-2375.76,0.00020547,2]
[368180670,1751051468197,-1778.83,0.00020547,2]
[368180671,1751051468207,-460.0,0.00020547,2]
[368180672,1751051468216,-2146.57,0.00020547,2]
[368180673,1751051468225,-917.64,0.00020547,2]
[368180674,1751051468235,-460.0,0.00020547,2]
[368180675,1751051468244,-550.12,0.00020547,2]
[368180676,1751051468253,-1025.56,0.00020547,2]
[368180677,1751051468263,-460.0,0.00020547,2]
[368180678,1751051468272,-460.0,0.00020547,2]
[368180679,1751051468282,-460.0,0.00020547,2]
[368180680,1751051468291,-1044.81,0.00020547,2]
[368180681,1751051468300,-483.65,0.00020547,2]
[368180682,1751051468309,-945.34,0.00020547,2]
[368180683,1751051468318,-151.0,0.00020547,2]
[368180684,1751051468328,-3198.36,0.00020547,2]
[368180685,1751051468337,-460.0,0.00020547,2]
[368180686,1751051468347,-709.45,0.00020547,2]
[368180687,1751051468357,-915.59,0.00020547,2]
[368180688,1751051468366,-824.17,0.00020547,2]
[368180689,1751051468376,-1482.55,0.00020547,2]
[368180690,1751051468386,-251.456301,0.00020547,2]
[368180691,1751051468395,-460.0,0.00020547,2]
[368180692,1751051468405,-2444.21,0.00020547,2]
[368180693,1751051468414,-1938.213358,0.00020547,2]
[368180694,1751051468423,-151.0,0.00020547,2]
[368180695,1751051468432,-251.456301,0.00020547,2]
[368180696,1751051468442,-464.20922617,0.00020547,2]
[368180697,1751051468451,-460.0,0.00020547,2]
[368180698,1751051468460,-1938.213358,0.00020547,2]
[368180699,1751051468470,-750.01,0.00020547,2]
[368180700,1751051468479,-1048.08,0.00020547,2]
[368180701,1751051468492,-460.0,0.00020547,2]
[368180702,1751051468502,-4965.5,0.00020547,2]
[368180703,1751051468511,-460.0,0.00020547,2]
[368180704,1751051468520,-460.0,0.00020547,2]
[368180705,1751051468530,-460.0,0.00020547,2]
[368180706,1751051468539,-460.0,0.00020547,2]
[368180707,1751051468548,-460.0,0.00020547,2]
[368180708,1751051468558,-460.0,0.00020547,2]
[368180709,1751051468567,-295.4470454,0.00020547,2]
[368180710,1751051468577,-771.0,0.00020547,2]
[368180711,1751051468586,-215.108381,0.00020547,2]
[368180712,1751051468596,-460.0,0.00020547,2]
[368180713,1751051468606,-215.108381,0.00020547,2]
[368180714,1751051468615,-460.0,0.00020547,2]
[368180715,1751051468625,-460.0,0.00020547,2]
[368180716,1751051468635,-168.4469,0.00020547,2]
[368180717,1751051468645,-460.0,0.00020547,2]
[368180718,1751051468654,-151.0,0.00020547,2]
[368180719,1751051468664,-460.0,0.00020547,2]
[368180720,1751051468674,-168.4469,0.00020547,2]
[368180721,1751051468683,-460.0,0.00020547,2]
[368180722,1751051468693,-460.0,0.00020547,2]
[368180723,1751051468703,-1360.53,0.00020547,2]
[368180724,1751051468712,-460.0,0.00020547,2]
[368180725,1751051468722,-1173.53,0.00020547,2]
[368180726,1751051468731,-11825.71,0.00020547,2]
[368180727,1751051468741,-460.0,0.00020547,2]
[368180728,1751051468750,-460.0,0.00020547,2]
[368180729,1751051468760,-460.0,0.00020547,2]
[368180730,1751051468769,-460.0,0.00020547,2]
[368180731,1751051468779,-3042.84,0.00020547,2]
[368180732,1751051468788,-460.0,0.00020547,2]
[368180733,1751051468797,-583.9,0.00020547,2]
[368180734,1751051468806,-460.0,0.00020547,2]
[368180735,1751051468816,-460.0,0.00020547,2]
[368180736,1751051468826,-640.44,0.00020547,2]
[368180737,1751051468835,-670.83,0.00020547,2]
[368180738,1751051468845,-460.0,0.00020547,2]
[368180739,1751051468855,-4999.34,0.00020547,2]
[368180740,1751051468865,-460.0,0.00020547,2]
[368180741,1751051468875,-460.0,0.00020547,2]
[368180742,1751051468884,-907.31,0.00020547,2]
[368180743,1751051468894,-872.48,0.00020547,2]
[368180744,1751051468903,-358.20961028,0.00020547,2]
[368180745,1751051468913,-460.0,0.00020547,2]
[368180746,1751051468922,-460.0,0.00020547,2]
[368180747,1751051468932,-460.0,0.00020547,2]
[368180748,1751051468942,-5707.73,0.00020547,2]
[368180749,1751051468952,-1053.94,0.00020547,2]
[368180750,1751051468962,-460.0,0.00020547,2]
[368180751,1751051468971,-500.0,0.00020548,2]
[368180752,1751051468982,-630.18000815,0.00020568,2]
[368180753,1751051468991,-500.0,0.00020568,2]
[368180754,1751051469001,-1500.0,0.00020568,2]
[368180755,1751051469010,-1000.0,0.00020568,2]
[368180756,1751051469020,-151.0,0.00020584,2]
[368180757,1751051469029,-151.0,0.00020584,2]
[368180758,1751051469039,-272.692667,0.00020584,2]
[368180759,1751051469048,-272.692667,0.00020584,2]
[368180760,1751051469057,-320.860355,0.00020584,2]
[368180761,1751051469067,-320.860355,0.00020584,2]
[368180762,1751051469077,-1461.53,0.000206,2]
[368180763,1751051469086,-1001.51305,0.00020624,2]
[368180764,1751051469096,-151.0,0.00020624,2]
[368180765,1751051469105,-151.0,0.00020624,2]
[368180766,1751051469114,-151.0,0.00020624,2]
[368180767,1751051469123,-160.0,0.00020624,3]
[368180768,1751051469133,-12562.41216491,0.00020624,3]
[368180769,1751051469142,-6904.98728489,0.00020624,3]
[368180770,1751051469152,-847.04181546,0.00020624,3]
[368180771,1751051469162,-160.0,0.00020624,3]
[368180772,1751051469171,-1000.0,0.00020689,2]
[368180773,1751051469181,-151.0,0.000207,4]
[368180774,1751051469190,-2498.52954587,0.00020818,2]
[368180775,1751051469200,-6721.4002135,0.00020819,2]
[368180776,1751051469210,-460.0,0.00020821,2]
[368180777,1751051469219,-395.12021099,0.00020821,2]
[368180778,1751051469229,-460.0,0.00020821,2]
[368180779,1751051469238,-460.0,0.00020821,2]
[368180780,1751051469248,-460.0,0.00020821,2]
[368180781,1751051469257,-460.0,0.00020821,2]
[368180782,1751051469267,-587.76,0.00020821,2]
[368180783,1751051469276,-460.0,0.00020821,2]
[368180784,1751051469286,-460.0,0.00020821,2]
[368180785,1751051469296,-460.0,0.00020821,2]
[368180786,1751051469306,-460.0,0.00020821,2]
[368180787,1751051469316,-460.0,0.00020821,2]
[368180788,1751051469325,-151.0,0.00020821,2]
[368180789,1751051469335,-177.30088361,0.00020821,2]
[368180790,1751051469344,-460.0,0.00020821,2]
[368180791,1751051469353,-425.54053076,0.00020821,2]
[368180792,1751051469363,-460.0,0.00020821,2]
[368180793,1751051469373,-460.0,0.00020821,2]
[368180794,1751051469382,-460.0,0.00020821,2]
[368180795,1751051469391,-460.0,0.00020821,2]
[368180796,1751051469401,-460.0,0.00020821,2]
[368180797,1751051469410,-176.797928,0.00020821,2]
[368180798,1751051469420,-460.0,0.00020821,2]
[368180799,1751051469429,-460.0,0.00020821,2]
[368180800,1751051469439,-460.0,0.00020821,2]
[368180801,1751051469448,-400.21602134,0.00020821,2]
[368180802,1751051469457,-896.19,0.00020821,2]
[368180803,1751051469467,-940.28,0.00020821,2]
[368180804,1751051469477,-460.0,0.00020821,2]
[368180805,1751051469490,-562.65,0.00020821,2]
[368180806,1751051469499,-379.4789932,0.00020821,2]
[368180807,1751051469508,-460.0,0.00020821,2]
[368180808,1751051469519,-460.0,0.00020821,2]
[368180809,1751051469528,-460.0,0.00020821,2]
[368180810,1751051469538,-1430.56,0.00020821,2]
[368180811,1751051469547,-460.0,0.00020821,2]
[368180812,1751051469558,-298.57962969,0.00020821,2]
[368180813,1751051469568,-460.0,0.00020821,2]
[368180814,1751051469577,-244.156814,0.00020821,2]
[368180815,1751051469586,-244.156814,0.00020821,2]
[368180816,1751051469705,-460.0,0.00020821,2]
[368180817,1751051469715,-525.51,0.00020821,2]
[368180818,1751051469724,-460.0,0.00020821,2]
[368180819,1751051469733,-460.0,0.00020821,2]
[368180820,1751051469743,-460.0,0.00020821,2]
[368180821,1751051469752,-460.0,0.00020821,2]
[368180822,1751051469761,-460.0,0.00020821,2]
[368180823,1751051469770,-460.0,0.00020821,2]
[368180824,1751051469779,-460.0,0.00020821,2]
[368180825,1751051469788,-460.0,0.00020821,2]
[368180826,1751051469798,-460.0,0.00020821,2]
[368180827,1751051469807,-633.77,0.00020821,2]
[368180828,1751051469816,-460.0,0.00020821,2]
[368180829,1751051469826,-460.0,0.00020821,2]
[368180830,1751051469835,-460.0,0.00020821,2]
[368180831,1751051469845,-460.0,0.00020821,2]
[368180832,1751051469854,-460.0,0.00020821,2]
[368180833,1751051469863,-460.0,0.00020821,2]
[368180834,1751051469873,-460.0,0.00020821,2]
[368180835,1751051469882,-460.0,0.00020821,2]
[368180836,1751051469892,-460.0,0.00020821,2]
[368180837,1751051469901,-460.0,0.00020821,2]
[368180838,1751051469911,-460.0,0.00020821,2]
[368180839,1751051469920,-460.0,0.00020821,2]
[368180840,1751051469930,-460.0,0.00020821,2]
[368180841,1751051469939,-460.0,0.00020821,2]
[368180842,1751051469950,-460.0,0.00020821,2]
[368180843,1751051469960,-460.0,0.00020821,2]
[368180844,1751051469970,-460.0,0.00020821,2]
[368180845,1751051469980,-151.0,0.00020821,2]
[368180846,1751051469989,-460.0,0.00020821,2]
[368180847,1751051469998,-885.83,0.00020821,2]
[368180848,1751051470008,-460.0,0.00020821,2]
[368180849,1751051470018,-460.0,0.00020821,2]
[368180850,1751051470027,-736.88,0.00020821,2]
[368180851,1751051470036,-460.0,0.00020821,2]
[368180852,1751051470045,-466.79,0.00020821,2]
[368180853,1751051470055,-460.0,0.00020821,2]
[368180854,1751051470064,-151.0,0.00020821,2]
[368180855,1751051470074,-343.99708836,0.00020821,2]
[368180856,1751051470083,-151.0,0.00020821,2]
[368180857,1751051470092,-460.0,0.00020821,2]
[368180858,1751051470101,-469.34,0.00020821,2]
[368180859,1751051470110,-460.0,0.00020821,2]
[368180860,1751051470119,-460.0,0.00020821,2]
[368180861,1751051470128,-460.0,0.00020821,2]
[368180862,1751051470137,-460.0,0.00020821,2]
[368180863,1751051470146,-460.0,0.00020821,2]
[368180864,1751051470157,-191.043374,0.00020821,2]
[368180865,1751051470167,-515.25,0.00020821,2]
[368180866,1751051470176,-191.043374,0.00020821,2]
[368180867,1751051470186,-1048.76,0.00020821,2]
[368180868,1751051470195,-151.0,0.00020821,2]
[368180869,1751051470204,-268.910966,0.00020821,2]
[368180870,1751051470213,-151.0,0.00020821,2]
[368180871,1751051470223,-460.0,0.00020821,2]
[368180872,1751051470231,-460.0,0.00020821,2]
[368180873,1751051470241,-460.0,0.00020821,2]
[368180874,1751051470250,-460.0,0.00020821,2]
[368180875,1751051470259,-268.910966,0.00020821,2]
[368180876,1751051470268,-151.0,0.00020821,2]
[368180877,1751051470277,-151.0,0.00020821,2]
[368180878,1751051470286,-151.0,0.00020821,2]
[368180879,1751051470295,-251.86662136,0.00020821,2]
[368180880,1751051470303,-460.0,0.00020821,2]
[368180881,1751051470312,-460.0,0.00020821,2]
[368180882,1751051470322,-460.0,0.00020821,2]
[368180883,1751051470331,-989.33,0.00020821,2]
[368180884,1751051470341,-460.0,0.00020821,2]
[368180885,1751051470350,-460.0,0.00020821,2]
[368180886,1751051470363,-460.0,0.00020821,2]
[368180887,1751051470372,-460.0,0.00020821,2]
[368180888,1751051470381,-460.0,0.00020821,2]
[368180889,1751051470390,-460.0,0.00020821,2]
[368180890,1751051470399,-460.0,0.00020821,2]
[368180891,1751051470408,-460.0,0.00020821,2]
[368180892,1751051470418,-151.0,0.00020821,2]
[368180893,1751051470427,-460.0,0.00020821,2]
[368180894,1751051470436,-460.0,0.00020821,2]
[368180895,1751051470445,-460.0,0.00020821,2]
[368180896,1751051470456,-797.49,0.00020821,2]
[368180897,1751051470465,-460.0,0.00020821,2]
[368180898,1751051470475,-790.98,0.00020821,2]
[368180899,1751051470487,-460.0,0.00020821,2]
[368180900,1751051470496,-1185.28,0.00020821,2]
[368180901,1751051470505,-460.0,0.00020821,2]
[368180902,1751051470515,-500.0,0.00020821,2]
[368180903,1751051470525,-1047.76,0.00020821,2]
[368180904,1751051470535,-1638.87,0.00020821,2]
[368180905,1751051470544,-1443.51,0.00020821,2]
[368180906,1751051470555,-2651.75,0.00020821,2]
[368180907,1751051470563,-617.15,0.00020821,2]
[368180908,1751051470574,-624.78,0.00020821,2]
[368180909,1751051470584,-794.36,0.00020821,2]
[368180910,1751051470593,-460.0,0.00020821,2]
[368180911,1751051470602,-460.0,0.00020821,2]
[368180912,1751051470612,-460.0,0.00020821,2]
[368180913,1751051470621,-151.0,0.00020821,2]
[368180914,1751051470630,-460.0,0.00020821,2]
[368180915,1751051470640,-460.0,0.00020821,2]
[368180916,1751051470650,-759.92,0.00020821,2]
[368180917,1751051470659,-460.0,0.00020821,2]
[368180918,1751051470669,-261.625174,0.00020821,2]
[368180919,1751051470678,-5876.3,0.00020821,2]
[368180920,1751051470687,-460.0,0.00020821,2]
[368180921,1751051470696,-261.625174,0.00020821,2]
[368180922,1751051470705,-460.0,0.00020821,2]
[368180923,1751051470714,-690.27,0.00020821,2]
[368180924,1751051470723,-460.0,0.00020821,2]
[368180925,1751051470732,-751.5,0.00020821,2]
[368180926,1751051470741,-460.0,0.00020821,2]
[368180927,1751051470750,-460.0,0.00020821,2]
[368180928,1751051470759,-8165.44,0.00020821,2]
[368180929,1751051470768,-460.0,0.00020821,2]
[368180930,1751051470778,-4917.82,0.00020821,2]
[368180931,1751051470787,-2460.7,0.00020821,2]
[368180932,1751051470796,-2172.27,0.00020821,2]
[368180933,1751051470806,-460.0,0.00020821,2]
[368180934,1751051470815,-460.0,0.00020821,2]